lending/lending_fUSD_20240621
["ID","MTS","AMOUNT","RATE_DAILY","PERIOD"]
[330062027,1718977850907,-500.0,0.00021917,4]
[330062028,1718977850916,-500.0,0.00021917,4]
[330062029,1718977850925,-500.0,0.00021917,4]
[330062030,1718977850935,-500.0,0.00021917,4]
[330062031,1718977850945,-1593.39,0.00021917,4]
[330062032,1718977850954,-340.00406738,0.00021917,4]
[330062033,1718977850963,-500.0,0.00021917,4]
[330062034,1718977850972,-500.0,0.00021917,4]
[330062035,1718977850983,-1200.47,0.00021917,4]
[330062036,1718977850995,-500.0,0.00021917,4]
[330062037,1718977851004,-500.0,0.00021917,4]
[330062038,1718977851016,-500.0,0.00021917,4]
[330062039,1718977851026,-874.58,0.00021917,4]
[330062040,1718977851036,-2259.38,0.00021917,4]
[330062041,1718977851046,-500.0,0.00021917,4]
[330062042,1718977851055,-500.0,0.00021917,4]
[330062043,1718977851067,-1143.11,0.00021917,4]
[330062044,1718977851078,-500.0,0.00021917,4]
[330062045,1718977851087,-1042.07,0.00021917,4]
[330062046,1718977851097,-500.0,0.00021917,4]
[330062047,1718977851106,-500.0,0.00021917,2]
[330062048,1718977851120,-1723.9,0.00021917,4]
[330062049,1718977851129,-598.94172968,0.00021917,4]
[330062050,1718977851138,-775.41,0.00021917,4]
[330062051,1718977851148,-500.0,0.00021917,4]
[330062052,1718977851157,-2579.83,0.00021917,4]
[330062053,1718977851167,-500.0,0.00021917,4]
[330062054,1718977851177,-552.27,0.00021917,4]
[330062055,1718977851186,-853.35,0.00021917,4]
[330062056,1718977851195,-1157.73,0.00021917,4]
[330062057,1718977851204,-1319.57,0.00021917,4]
[330062058,1718977851213,-1179.68,0.00021917,4]
[330062059,1718977851223,-1580.02,0.00021917,4]
[330062060,1718977851233,-2174.39,0.00021917,4]
[330062061,1718977851242,-500.0,0.00021917,4]
[330062062,1718977851251,-669.36,0.00021917,4]
[330062063,1718977851260,-500.0,0.00021917,4]
[330062064,1718977851271,-1878.98,0.00021917,4]
[330062065,1718977851281,-500.0,0.00021917,4]
[330062066,1718977851290,-500.0,0.00021917,4]
[330062067,1718977851299,-500.0,0.00021917,4]
[330062068,1718977851310,-500.0,0.00021917,4]
[330062069,1718977851320,-500.0,0.00021917,4]
[330062070,1718977851331,-500.0,0.00021917,4]
[330062071,1718977851340,-756.18,0.00021917,4]
[330062072,1718977851350,-1103.22,0.00021917,4]
[330062073,1718977851359,-500.0,0.00021917,4]
[330062074,1718977851368,-500.0,0.00021917,4]
[330062075,1718977851378,-500.0,0.00021917,4]
[330062076,1718977851387,-946.73,0.00021917,4]
[330062077,1718977851396,-2228.0,0.00021917,4]
[330062078,1718977851405,-500.0,0.00021917,4]
[330062079,1718977851415,-768.4,0.00021917,4]
[330062080,1718977851424,-500.0,0.00021917,4]
[330062081,1718977851433,-500.0,0.00021917,4]
[330062082,1718977851443,-151.93478435,0.00021917,4]
[330062083,1718977851451,-500.0,0.00021917,4]
[330062084,1718977851461,-508.48,0.00021917,4]
[330062085,1718977851470,-593.9,0.00021917,4]
[330062086,1718977851479,-688.83,0.00021917,4]
[330062087,1718977851488,-1542.47,0.00021917,4]
[330062088,1718977851498,-2121.75,0.00021917,4]
[330062089,1718977851507,-5000.0,0.00021917,4]
[330062090,1718977851517,-507.78513371,0.00021917,4]
[330062091,1718977851527,-500.0,0.00021917,4]
[330062092,1718977851537,-500.0,0.00021917,4]
[330062093,1718977851547,-1284.6,0.00021917,4]
[330062094,1718977851556,-508.36043184,0.00021917,4]
[330062095,1718977851567,-500.0,0.00021917,4]
[330062096,1718977851575,-770.01,0.00021917,4]
[330062097,1718977851585,-905.12,0.00021917,4]
[330062098,1718977851594,-500.0,0.00021917,4]
[330062099,1718977851603,-2433.21,0.00021917,4]
[330062100,1718977851613,-500.0,0.00021917,4]
[330062101,1718977851622,-500.0,0.00021917,4]
[330062102,1718977851632,-660.29,0.00021917,4]
[330062103,1718977851641,-712.37,0.00021917,7]
[330062104,1718977851651,-1004.95,0.00021917,4]
[330062105,1718977851661,-500.0,0.00021917,4]
[330062106,1718977851670,-500.0,0.00021917,4]
[330062107,1718977851681,-657.17,0.00021917,4]
[330062108,1718977851691,-500.0,0.00021917,4]
[330062109,1718977851701,-1351.96,0.00021917,4]
[330062110,1718977851710,-500.0,0.00021917,4]
[330062111,1718977851719,-3103.65,0.00021917,4]
[330062112,1718977851728,-1630.34,0.00021917,4]
[330062113,1718977851738,-1898.28,0.00021917,4]
[330062114,1718977851747,-500.0,0.00021917,4]
[330062115,1718977851757,-1010.3,0.00021917,4]
[330062116,1718977851766,-500.0,0.00021917,4]
[330062117,1718977851776,-500.0,0.00021917,4]
[330062118,1718977851785,-500.0,0.00021917,4]
[330062119,1718977851794,-500.0,0.00021917,4]
[330062120,1718977851804,-1000.36,0.00021917,4]
[330062121,1718977851815,-563.32,0.00021917,4]
[330062122,1718977851824,-500.0,0.00021917,4]
[330062123,1718977851835,-500.0,0.00021917,4]
[330062124,1718977851845,-717.12,0.00021917,4]
[330062125,1718977851854,-2056.05,0.00021917,4]
[330062126,1718977851866,-500.0,0.00021917,4]
[330062127,1718977851875,-500.0,0.00021917,4]
[330062128,1718977851884,-500.0,0.00021917,4]
[330062129,1718977851894,-568.79,0.00021917,4]
[330062130,1718977851903,-500.0,0.00021917,4]
[330062131,1718977851912,-500.0,0.00021917,4]
[330062132,1718977851921,-1379.94,0.00021917,4]
[330062133,1718977851931,-500.0,0.00021917,4]
[330062134,1718977851940,-866.88,0.00021917,4]
[330062135,1718977851949,-2516.52,0.00021917,4]
[330062136,1718977851959,-500.0,0.00021917,4]
[330062137,1718977851969,-609.37,0.00021917,4]
[330062138,1718977851979,-558.47,0.00021917,4]
[330062139,1718977851989,-535.9,0.00021917,4]
[330062140,1718977852003,-500.0,0.00021917,4]
[330062141,1718977852012,-1207.7,0.00021917,4]
[330062142,1718977852022,-500.0,0.00021917,4]
[330062143,1718977852031,-510.41,0.00021917,4]
[330062144,1718977852042,-749.15,0.00021917,4]
[330062145,1718977852051,-960.29,0.00021917,4]
[330062146,1718977852062,-1219.71,0.00021917,4]
[330062147,1718977852074,-500.0,0.00021917,4]
[330062148,1718977852083,-500.0,0.00021917,4]
[330062149,1718977852092,-500.0,0.00021917,4]
[330062150,1718977852100,-1160.22,0.00021917,4]
[330062151,1718977852109,-856.19,0.00021917,4]
[330062152,1718977852118,-927.6,0.00021917,4]
[330062153,1718977852127,-986.55,0.00021917,4]
[330062154,1718977852138,-500.0,0.00021917,4]
[330062155,1718977852147,-500.0,0.00021917,4]
[330062156,1718977852157,-717.42,0.00021917,4]
[330062157,1718977852166,-1021.07,0.00021917,4]
[330062158,1718977852176,-918.88,0.00021917,4]
[330062159,1718977852186,-648.74,0.00021917,4]
[330062160,1718977852195,-1542.67,0.00021917,4]
[330062161,1718977852205,-500.0,0.00021917,4]
[330062162,1718977852215,-500.0,0.00021917,4]
[330062163,1718977852224,-883.29,0.00021917,4]
[330062164,1718977852234,-500.0,0.00021917,2]
[330062165,1718977852244,-500.0,0.00021917,2]
[330062166,1718977852254,-500.0,0.00021917,2]
[330062167,1718977852263,-500.0,0.00021917,4]
[330062168,1718977852273,-905.39240872,0.00021917,3]
[330062169,1718977852282,-500.0,0.00021917,4]
[330062170,1718977852292,-700.37,0.00021917,4]
[330062171,1718977852301,-1278.83,0.00021917,4]
[330062172,1718977852313,-834.93,0.00021917,4]
[330062173,1718977852328,-500.0,0.00021917,4]
[330062174,1718977852338,-719.98,0.00021917,4]
[330062175,1718977852347,-2538.9,0.00021917,4]
[330062176,1718977852356,-626.30840864,0.00021917,4]
[330062177,1718977852365,-706.21,0.00021917,4]
[330062178,1718977852375,-500.0,0.00021917,4]
[330062179,1718977852384,-1868.03,0.00021917,4]
[330062180,1718977852393,-670.85,0.00021917,4]
[330062181,1718977852402,-988.24,0.00021917,4]
[330062182,1718977852412,-500.0,0.00021917,4]
[330062183,1718977852420,-1975.26,0.00021917,4]
[330062184,1718977852430,-500.0,0.00021917,4]
[330062185,1718977852439,-500.0,0.00021917,4]
[330062186,1718977852448,-1915.97,0.00021917,4]
[330062187,1718977852457,-500.0,0.00021917,4]
[330062188,1718977852467,-1287.72,0.00021917,4]
[330062189,1718977852476,-1117.06,0.00021917,4]
[330062190,1718977852485,-500.0,0.00021917,4]
[330062191,1718977852495,-1172.1,0.00021917,4]
[330062192,1718977852504,-500.0,0.00021917,4]
[330062193,1718977852513,-627.28,0.00021917,4]
[330062194,1718977852522,-1965.25,0.00021917,4]
[330062195,1718977852532,-500.0,0.00021917,4]
[330062196,1718977852541,-2338.31,0.00021917,4]
[330062197,1718977852550,-500.0,0.00021917,4]
[330062198,1718977852560,-1886.66,0.00021917,4]
[330062199,1718977852572,-500.0,0.00021917,4]
[330062200,1718977852581,-1414.67,0.00021917,4]
[330062201,1718977852590,-999.05,0.00021917,4]
[330062202,1718977852599,-522.65240823,0.00021917,4]
[330062203,1718977852608,-706.73,0.00021917,4]
[330062204,1718977852617,-941.4,0.00021917,4]
[330062205,1718977852626,-1448.19,0.00021917,4]
[330062206,1718977852635,-500.0,0.00021917,4]
[330062207,1718977852644,-500.0,0.00021917,4]
[330062208,1718977852653,-2996.1,0.00021917,4]
[330062209,1718977852661,-500.0,0.00021917,4]
[330062210,1718977852670,-500.0,0.00021917,4]
[330062211,1718977852679,-500.0,0.00021917,4]
[330062212,1718977852687,-500.0,0.00021917,4]
[330062213,1718977852696,-500.0,0.00021917,4]
[330062214,1718977852704,-500.0,0.00021917,4]
[330062215,1718977852714,-768.22,0.00021917,4]
[330062216,1718977852722,-619.19,0.00021917,4]
[330062217,1718977852731,-1482.23,0.00021917,4]
[330062218,1718977852740,-500.0,0.00021917,4]
[330062219,1718977852748,-575.73,0.00021917,4]
[330062220,1718977852758,-500.0,0.00021917,4]
[330062221,1718977852766,-1845.46,0.00021917,4]
[330062222,1718977852775,-1803.56,0.00021917,4]
[330062223,1718977852784,-713.97,0.00021917,4]
[330062224,1718977852793,-500.0,0.00021917,4]
[330062225,1718977852802,-654.89,0.00021917,4]
[330062226,1718977852813,-477.67239634,0.00021917,4]
[330062227,1718977852822,-590.03,0.00021917,4]
[330062228,1718977852831,-1204.65,0.00021917,4]
[330062229,1718977852841,-500.0,0.00021917,4]
[330062230,1718977852851,-1676.15,0.00021917,4]
[330062231,1718977852860,-854.08,0.00021917,4]
[330062232,1718977852869,-500.0,0.00021917,4]
[330062233,1718977852878,-500.0,0.00021917,4]
[330062234,1718977852888,-2634.01,0.00021917,4]
[330062235,1718977852897,-1327.66,0.00021917,4]
[330062236,1718977852907,-1184.12,0.00021917,4]
[330062237,1718977852917,-961.67,0.00021917,4]
[330062238,1718977852926,-500.0,0.00021917,4]
[330062239,1718977852935,-500.0,0.00021917,4]
[330062240,1718977852944,-2111.67,0.00021917,4]
[330062241,1718977852953,-1884.35,0.00021917,4]
[330062242,1718977852962,-500.0,0.00021917,4]
[330062243,1718977852971,-500.0,0.00021917,4]
[330062244,1718977852981,-649.99,0.00021917,4]
[330062245,1718977852993,-500.0,0.00021917,4]
[330062246,1718977853003,-500.0,0.00021917,4]
[330062247,1718977853011,-508.15,0.00021917,4]
[330062248,1718977853021,-500.0,0.00021917,4]
[330062249,1718977853030,-2034.66,0.00021917,4]
[330062250,1718977853040,-500.0,0.00021917,4]
[330062251,1718977853048,-666.61,0.00021917,4]
[330062252,1718977853058,-1870.21,0.00021917,4]
[330062253,1718977853070,-500.0,0.00021917,4]
[330062254,1718977853081,-607.75,0.00021917,4]
[330062255,1718977853090,-500.0,0.00021917,4]
[330062256,1718977853099,-500.0,0.00021917,4]
[330062257,1718977853109,-545.31,0.00021917,4]
[330062258,1718977853118,-683.36,0.00021917,4]
[330062259,1718977853127,-500.0,0.00021917,4]
[330062260,1718977853136,-564.88,0.00021917,4]
[330062261,1718977853146,-500.0,0.00021917,4]
[330062262,1718977853155,-2159.93,0.00021917,4]
[330062263,1718977853164,-1448.34,0.00021917,4]
[330062264,1718977853173,-500.0,0.00021917,4]
[330062265,1718977853183,-500.0,0.00021917,4]
[330062266,1718977853192,-500.0,0.00021917,4]
[330062267,1718977853201,-161.92991928,0.00021917,4]
[330062268,1718977853211,-500.0,0.00021917,4]
[330062269,1718977853221,-500.0,0.00021917,4]
[330062270,1718977853230,-749.66,0.00021917,4]
[330062271,1718977853240,-500.0,0.00021917,4]
[330062272,1718977853250,-500.0,0.00021917,4]
[330062273,1718977853259,-500.0,0.00021917,4]
[330062274,1718977853270,-500.0,0.00021917,4]
[330062275,1718977853279,-536.76,0.00021917,4]
[330062276,1718977853289,-500.0,0.00021917,4]
[330062277,1718977853299,-1000.0,0.00021917,4]
[330062278,1718977853308,-500.0,0.00021917,4]
[330062279,1718977853320,-2550.89,0.00021917,4]
[330062280,1718977853329,-1146.41,0.00021917,4]
[330062281,1718977853338,-500.0,0.00021917,4]
[330062282,1718977853348,-2205.83,0.00021917,4]
[330062283,1718977853358,-591.28,0.00021917,4]
[330062284,1718977853368,-1151.77,0.00021917,4]
[330062285,1718977853377,-672.88,0.00021917,4]
[330062286,1718977853386,-592.05,0.00021917,4]
[330062287,1718977853396,-500.0,0.00021917,4]
[330062288,1718977853405,-500.0,0.00021917,4]
[330062289,1718977853415,-500.0,0.00021917,4]
[330062290,1718977853424,-706.87,0.00021917,4]
[330062291,1718977853434,-1512.52,0.00021917,4]
[330062292,1718977853444,-500.0,0.00021917,4]
[330062293,1718977853455,-1434.65,0.00021917,4]
[330062294,1718977853464,-1151.09,0.00021917,4]
[330062295,1718977853474,-1360.59,0.00021917,4]
[330062296,1718977853484,-2132.22,0.00021917,4]
[330062297,1718977853495,-1085.94,0.00021917,4]
[330062298,1718977853504,-500.0,0.00021917,4]
[330062299,1718977853514,-500.0,0.00021917,4]
[330062300,1718977853523,-532.00474181,0.00021917,32]
[330062301,1718977853533,-500.0,0.00021917,4]
[330062302,1718977853543,-500.0,0.00021917,4]
[330062303,1718977853552,-1210.21,0.00021917,4]
[330062304,1718977853563,-500.0,0.00021917,4]
[330062305,1718977853571,-2304.67,0.00021917,4]
[330062306,1718977853580,-1078.23,0.00021917,4]
[330062307,1718977853589,-493.38814369,0.00021917,4]
[330062308,1718977853598,-1188.81,0.00021917,4]
[330062309,1718977853608,-500.0,0.00021917,4]
[330062310,1718977853618,-500.0,0.00021917,4]
[330062311,1718977853627,-1601.24,0.00021917,4]
[330062312,1718977853637,-835.26,0.00021917,4]
[330062313,1718977853648,-1210.28,0.00021917,4]
[330062314,1718977853658,-1233.53,0.00021917,4]
[330062315,1718977853667,-1168.8,0.00021917,4]
[330062316,1718977853677,-731.24,0.00021917,4]
[330062317,1718977853686,-500.0,0.00021917,4]
[330062318,1718977853696,-2088.41,0.00021917,4]
[330062319,1718977853706,-961.92,0.00021917,4]
[330062320,1718977853717,-1577.6,0.00021917,4]
[330062321,1718977853726,-832.66,0.00021917,4]
[330062322,1718977853736,-1021.31,0.00021917,4]
[330062323,1718977853746,-497.25552269,0.00021917,4]
[330062324,1718977853756,-680.51,0.00021917,4]
[330062325,1718977853765,-500.0,0.00021917,4]
[330062326,1718977853774,-526.71,0.00021917,4]
[330062327,1718977853784,-500.0,0.00021917,4]
[330062328,1718977853794,-500.0,0.00021917,4]
[330062329,1718977853804,-1893.49,0.00021917,4]
[330062330,1718977853814,-500.0,0.00021917,4]
[330062331,1718977853823,-651.49,0.00021917,4]
[330062332,1718977853832,-1939.26,0.00021917,4]
[330062333,1718977853842,-768.55,0.00021917,4]
[330062334,1718977853852,-1473.64,0.00021917,4]
[330062335,1718977853862,-505.58491773,0.00021917,4]
[330062336,1718977853872,-500.0,0.00021917,4]
[330062337,1718977853881,-500.0,0.00021917,4]
[330062338,1718977853892,-500.0,0.00021917,4]
[330062339,1718977853901,-665.87,0.00021917,4]
[330062340,1718977853911,-704.83,0.00021917,4]
[330062341,1718977853921,-1008.64,0.00021917,4]
[330062342,1718977853930,-500.0,0.00021917,4]
[330062343,1718977853941,-500.0,0.00021917,4]
[330062344,1718977853951,-500.0,0.00021917,4]
[330062345,1718977853961,-1792.16,0.00021917,4]
[330062346,1718977853971,-1055.65,0.00021917,4]
[330062347,1718977853982,-500.0,0.00021917,4]
[330062348,1718977853992,-500.0,0.00021917,4]
[330062349,1718977854004,-1077.57,0.00021917,4]
[330062350,1718977854015,-541.74,0.00021917,4]
[330062351,1718977854026,-500.0,0.00021917,4]
[330062352,1718977854038,-500.0,0.00021917,4]
[330062353,1718977854048,-622.34,0.00021917,4]
[330062354,1718977854058,-500.0,0.00021917,4]
[330062355,1718977854071,-839.3,0.00021917,4]
[330062356,1718977854216,-500.0,0.00021917,4]
[330062357,1718977854292,-1917.67,0.00021917,4]
[330062358,1718977854302,-500.0,0.00021917,4]
[330062359,1718977854312,-500.0,0.00021917,4]
[330062360,1718977854322,-500.0,0.00021917,4]
[330062361,1718977854332,-1416.94,0.00021917,4]
[330062362,1718977854342,-1454.71,0.00021917,4]
[330062363,1718977854352,-598.48,0.00021917,4]
[330062364,1718977854362,-500.0,0.00021917,4]
[330062365,1718977854372,-633.87,0.00021917,4]
[330062366,1718977854383,-1440.45,0.00021917,4]
[330062367,1718977854393,-1032.98,0.00021917,4]
[330062368,1718977854404,-500.0,0.00021917,4]
[330062369,1718977854415,-500.0,0.00021917,4]
[330062370,1718977854425,-500.0,0.00021917,4]
[330062371,1718977854435,-500.0,0.00021917,4]
[330062372,1718977854446,-645.21,0.00021917,4]
[330062373,1718977854456,-500.0,0.00021917,4]
[330062374,1718977854466,-500.0,0.00021917,4]
[330062375,1718977854476,-500.0,0.00021917,4]
[330062376,1718977854486,-636.1309617,0.00021917,4]
[330062377,1718977854496,-212.96787126,0.00021917,4]
[330062378,1718977854506,-521.52,0.00021917,4]
[330062379,1718977854522,-594.42461261,0.00021917,4]
[330062380,1718977854533,-1207.22,0.00021917,4]
[330062381,1718977854543,-170.69696936,0.00021917,4]
[330062382,1718977854553,-500.0,0.00021917,4]
[330062383,1718977854564,-698.58,0.00021917,4]
[330062384,1718977854573,-500.0,0.00021917,4]
[330062385,1718977854583,-1902.21,0.00021917,4]
[330062386,1718977854593,-500.0,0.00021917,4]
[330062387,1718977854603,-971.46,0.00021917,4]
[330062388,1718977854613,-1644.29,0.00021917,4]
[330062389,1718977854624,-500.0,0.00021917,4]
[330062390,1718977854633,-500.0,0.00021917,4]
[330062391,1718977854643,-500.0,0.00021917,4]
[330062392,1718977854653,-500.0,0.00021917,4]
[330062393,1718977854662,-500.0,0.00021917,4]
[330062394,1718977854672,-615.15,0.00021917,4]
[330062395,1718977854682,-736.66,0.00021917,4]
[330062396,1718977854691,-500.0,0.00021917,4]
[330062397,1718977854701,-500.0,0.00021917,4]
[330062398,1718977854711,-500.0,0.00021917,4]
[330062399,1718977854721,-500.0,0.00021917,4]
[330062400,1718977854730,-1808.11,0.00021917,4]
[330062401,1718977854740,-642.38,0.00021917,4]
[330062402,1718977854756,-1099.4,0.00021917,4]
[330062403,1718977854767,-770.47,0.00021917,4]
[330062404,1718977854777,-2235.1,0.00021917,4]
[330062405,1718977854788,-500.0,0.00021917,4]
[330062406,1718977854799,-500.0,0.00021917,4]
[330062407,1718977854810,-500.0,0.00021917,4]
[330062408,1718977854824,-500.0,0.00021917,4]
[330062409,1718977854835,-599.64,0.00021917,4]
[330062410,1718977854849,-500.0,0.00021917,4]
[330062411,1718977854859,-395.38981528,0.00021917,4]
[330062412,1718977854870,-500.0,0.00021917,4]
[330062413,1718977854880,-1303.12,0.00021917,4]
[330062414,1718977854891,-521.56,0.00021917,4]
[330062415,1718977854901,-500.0,0.00021917,4]
[330062416,1718977854911,-7572.66,0.00021917,4]
[330062417,1718977854921,-901.27,0.00021917,4]
[330062418,1718977854932,-500.0,0.00021917,4]
[330062419,1718977854944,-500.0,0.00021917,4]
[330062420,1718977854955,-500.0,0.00021917,4]
[330062421,1718977854966,-366.10212612,0.00021917,4]
[330062422,1718977854976,-500.0,0.00021917,4]
[330062423,1718977854992,-622.9905561,0.00021917,4]
[330062424,1718977855003,-500.0,0.00021917,4]
[330062425,1718977855014,-500.0,0.00021917,4]
[330062426,1718977855024,-566.84,0.00021917,4]
[330062427,1718977855036,-500.0,0.00021917,4]
[330062428,1718977855046,-500.0,0.00021917,4]
[330062429,1718977855057,-2375.47,0.00021917,4]
[330062430,1718977855069,-1502.29,0.00021917,4]
[330062431,1718977855082,-500.0,0.00021917,4]
[330062432,1718977855092,-610.6,0.00021917,4]
[330062433,1718977855102,-993.7,0.00021917,4]
[330062434,1718977855113,-500.0,0.00021917,4]
[330062435,1718977855123,-173.55862039,0.00021917,4]
[330062436,1718977855133,-500.0,0.00021917,4]
[330062437,1718977855144,-500.0,0.00021917,4]
[330062438,1718977855154,-500.0,0.00021917,4]
[330062439,1718977855164,-638.56932827,0.00021917,4]
[330062440,1718977855174,-3006.72,0.00021917,4]
[330062441,1718977855184,-500.0,0.00021917,4]
[330062442,1718977855194,-500.0,0.00021917,4]
[330062443,1718977855204,-500.0,0.00021917,4]
[330062444,1718977855214,-500.0,0.00021917,4]
[330062445,1718977855225,-500.0,0.00021917,4]
[330062446,1718977855236,-510.13055163,0.00021917,4]
[330062447,1718977855246,-2888.41,0.00021917,4]
[330062448,1718977855256,-1922.79,0.00021917,4]
[330062449,1718977855266,-534.18,0.00021917,4]
[330062450,1718977855277,-500.0,0.00021917,4]
[330062451,1718977855287,-500.0,0.00021917,4]
[330062452,1718977855298,-500.0,0.00021917,4]
[330062453,1718977855309,-500.0,0.00021917,4]
[330062454,1718977855322,-500.0,0.00021917,4]
[330062455,1718977855333,-13845.09,0.00021917,4]
[330062456,1718977855352,-536.63,0.00021917,4]
[330062457,1718977855362,-500.0,0.00021917,4]
[330062458,1718977855373,-500.0,0.00021917,4]
[330062459,1718977855387,-922.64,0.00021917,4]
[330062460,1718977855398,-1527.67,0.00021917,4]
[330062461,1718977855408,-500.0,0.00021917,4]
[330062462,1718977855419,-827.97,0.00021917,4]
[330062463,1718977855430,-500.0,0.00021917,4]
[330062464,1718977855441,-500.0,0.00021917,4]
[330062465,1718977855452,-350.32974079,0.00021917,4]
[330062466,1718977855463,-500.0,0.00021917,4]
[330062467,1718977855473,-544.92,0.00021917,4]
[330062468,1718977855484,-2194.03,0.00021917,4]
[330062469,1718977855494,-500.0,0.00021917,4]
[330062470,1718977855504,-959.53,0.00021917,4]
[330062471,1718977855514,-500.0,0.00021917,4]
[330062472,1718977855524,-500.0,0.00021917,4]
[330062473,1718977855534,-1745.97,0.00021917,4]
[330062474,1718977855545,-500.0,0.00021917,4]
[330062475,1718977855555,-649.63,0.00021917,4]
[330062476,1718977855565,-2628.97,0.00021917,4]
[330062477,1718977855574,-2682.08,0.00021917,4]
[330062478,1718977855584,-2737.77,0.00021917,4]
[330062479,1718977855594,-752.53,0.00021917,4]
[330062480,1718977855604,-500.0,0.00021917,4]
[330062481,1718977855614,-500.0,0.00021917,4]
[330062482,1718977855624,-14028.66,0.00021917,4]
[330062483,1718977855634,-500.0,0.00021917,2]
[330062484,1718977855644,-695.07,0.00021917,4]
[330062485,1718977855654,-772.6,0.00021917,4]
[330062486,1718977855664,-301.50623895,0.00021917,4]
[330062487,1718977855674,-500.0,0.00021917,4]
[330062488,1718977855684,-746.53,0.00021917,4]
[330062489,1718977855694,-7313.92,0.00021917,4]
[330062490,1718977855704,-500.0,0.00021917,4]
[330062491,1718977855714,-500.0,0.00021917,4]
[330062492,1718977855724,-500.0,0.00021917,4]
[330062493,1718977855733,-1320.24,0.00021917,4]
[330062494,1718977855743,-905.91,0.00021917,4]
[330062495,1718977855753,-500.0,0.00021917,4]
[330062496,1718977855763,-1701.01641358,0.00021917,4]
[330062497,1718977855877,-298.98358642,0.00021917,4]
[330062498,1718977855887,-1319.31,0.00021917,4]
[330062499,1718977855899,-500.0,0.00021917,4]
[330062500,1718977855909,-167.86360449,0.00021917,4]
[330062501,1718977855922,-3277.60137047,0.00021917,4]
[330062502,1718977857327,-2490.51964507,0.00016397,2]
[330062503,1718977857337,-350.49830244,0.00020169,2]
[330062504,1718977857349,-2426.74390075,0.00020169,2]
[330062505,1718977857358,-1910.21270839,0.00021917,4]
[330062506,1718977857370,-11352.34231665,0.00021917,4]
[330062507,1718977857383,-500.0,0.00021917,4]
[330062508,1718977857392,-500.0,0.00021917,4]
[330062509,1718977857402,-7302.67,0.00021917,4]
[330062510,1718977857412,-151.0,0.00021917,2]
[330062511,1718977857422,-151.0,0.00021917,2]
[330062512,1718977857432,-519.35,0.00021917,4]
[330062513,1718977857442,-500.0,0.00021917,4]
[330062514,1718977857451,-500.0,0.00021917,4]
[330062515,1718977857461,-6710.54,0.00021917,4]
[330062516,1718977857472,-500.0,0.00021917,4]
[330062517,1718977857482,-500.0,0.00021917,4]
[330062518,1718977857492,-1566.63,0.00021917,4]
[330062519,1718977857502,-823.35,0.00021917,4]
[330062520,1718977857511,-500.0,0.00021917,4]
[330062521,1718977857521,-742.12,0.00021917,4]
[330062522,1718977857531,-699.13,0.00021917,4]
[330062523,1718977857540,-500.0,0.00021917,4]
[330062524,1718977857551,-527.11,0.00021917,4]
[330062525,1718977857560,-967.66,0.00021917,4]
[330062526,1718977857571,-387.09768335,0.00021917,4]